bitfinex-derivatives/quotes_ETHF0:USTF0_20250904
["timestamp","ask_amount","ask_price","bid_price","bid_amount"]
[1756962073873,0.3536,4381.0,4380.2,0.36]
[1756962073874,0.56049643,4380.8,4380.2,0.36]
[1756962074065,1.21738667,4380.4,4379.6,0.36]
[1756962074272,0.56049643,4380.3,4379.6,0.36]
[1756962074473,0.56049643,4380.2,4379.6,0.36]
[1756962074668,0.56049643,4380.2,4378.5,0.1395]
[1756962074669,0.56049643,4380.1,4379.4,0.36]
[1756962074971,0.56049643,4380.0,4379.5,0.1395]
[1756962075274,0.56049643,4379.9,4379.6,0.36]
[1756962075467,1.21738667,4380.4,4379.6,0.36]
[1756962075468,0.56049643,4379.8,4379.6,0.36]
[1756962075768,1.21738667,4380.8,4379.6,0.36]
[1756962076477,1.57098667,4380.9,4379.6,0.36]
[1756962076974,1.57098667,4380.9,4379.6,0.461]
[1756962077369,1.57098667,4380.9,4379.7,0.132]
[1756962077566,1.21738667,4380.9,4379.8,0.36]
[1756962077767,1.21738667,4381.4,4379.9,0.36]
[1756962077965,1.57098667,4381.5,4380.0,0.36]
[1756962078268,1.72505579,4382.0,4380.0,0.22827]
[1756962078269,1.21738667,4381.6,4380.0,0.22827]
[1756962078474,0.3536,4382.0,4380.6,0.41075]
[1756962078667,0.3536,4382.0,4380.8,0.36]
[1756962079070,0.3536,4382.0,4381.1,0.36]
[1756962079572,0.3536,4381.7,4380.9,0.269]
[1756962079769,0.3536,4381.7,4380.6,0.36]
[1756962079975,0.3536,4381.7,4380.7,0.269]
[1756962080176,0.1436,4381.5,4380.6,41.429]
[1756962080568,0.3536,4381.4,4380.7,0.269]
[1756962080768,0.3536,4381.4,4380.6,0.36]
[1756962081373,1.57098667,4381.4,4380.6,0.36]
[1756962081773,1.21738667,4381.4,4380.6,0.36]
[1756962081968,1.21738667,4381.6,4380.6,4.36]
[1756962082177,1.21738667,4381.6,4380.5,0.0697]
[1756962082178,1.21738667,4382.1,4381.1,0.36]
[1756962082377,0.1436,4382.0,4381.2,0.268]
[1756962083074,0.1436,4382.0,4381.1,0.36]
[1756962083374,1.36098667,4382.0,4381.2,0.268]
[1756962083878,1.21738667,4381.9,4381.2,0.268]
[1756962084079,1.36098667,4382.0,4381.2,0.268]
[1756962084376,1.21738667,4381.9,4381.3,0.36]
[1756962084573,1.21738667,4382.0,4381.3,0.36]
[1756962084777,1.21738667,4382.1,4381.3,0.36]
[1756962084977,1.21738667,4382.2,4381.3,0.36]
[1756962085280,1.21738667,4382.3,4381.3,0.36]
[1756962085481,1.21738667,4382.4,4381.3,0.36]
[1756962085981,1.57098667,4382.5,4381.3,0.36]
[1756962086175,1.57098667,4382.5,4381.3,33.23]
[1756962086371,1.57098667,4382.5,4381.5,0.1395]
[1756962086576,1.57098667,4382.5,4381.7,0.36]
[1756962086776,1.21738667,4382.5,4381.7,0.36]
[1756962087476,1.21738667,4383.0,4382.3,0.36]
[1756962087681,0.58057101,4382.9,4382.5,0.4297]
[1756962087881,0.58057101,4382.8,4382.6,0.36]
[1756962088083,0.58057101,4382.7,4382.6,0.36]
[1756962088477,0.3536,4383.8,4382.6,0.36]
[1756962088776,0.74259403,4383.7,4382.6,0.36]
[1756962088982,0.56122766,4383.6,4382.8,0.36]
[1756962089284,1.21738667,4384.7,4383.7,0.36]
[1756962089485,0.5513521,4384.6,4383.9,0.36]
[1756962089781,0.3536,4384.8,4384.1,0.36]
[1756962090186,0.3536,4385.4,4384.2,0.36]
[1756962090575,0.4972,4385.0,4384.0,0.266]
[1756962090777,0.3536,4384.8,4383.7,0.266]
[1756962090985,0.3536,4383.9,4383.7,0.266]
[1756962091179,0.4972,4384.5,4383.7,0.626]
[1756962091380,0.54609973,4384.4,4383.7,0.626]
[1756962091580,0.4972,4384.5,4383.7,0.626]
[1756962092286,0.3536,4384.5,4383.8,0.36]
[1756962092489,0.3536,4384.5,4383.9,0.266]
[1756962093084,0.1436,4385.0,4383.9,0.266]
[1756962093289,0.4972,4385.0,4384.0,0.36]
[1756962093591,0.18133719,4384.9,4384.1,0.266]
[1756962093785,0.53493719,4384.8,4384.1,0.266]
[1756962093982,0.3536,4384.8,4384.1,0.266]
[1756962094182,0.3536,4385.4,4384.2,0.36]
[1756962094382,0.3536,4385.2,4384.3,0.265]
[1756962095478,0.3536,4385.2,4384.4,0.36]
[1756962098102,0.3536,4385.9,4384.6,0.36]
[1756962098294,0.1436,4386.5,4385.5,5.8799985]
[1756962098494,0.3536,4386.5,4386.1,0.36]
[1756962098698,0.4972,4387.0,4386.1,0.36]
[1756962099697,0.4972,4387.0,4386.2,0.264]
[1756962100200,0.1436,4386.5,4384.5,0.0697]
[1756962100400,6.0235985,4386.5,4384.7,5.8799985]
[1756962100605,0.3536,4386.4,4384.8,0.36]
[1756962100905,0.3536,4386.4,4385.3,0.36]
[1756962101097,0.3536,4386.4,4385.4,0.264]
[1756962101995,0.3536,4386.4,4385.5,0.3388]
[1756962102198,0.1436,4387.0,4385.8,0.3388]
[1756962102505,0.3412,4386.9,4385.8,0.3388]
[1756962102804,0.3412,4386.9,4385.9,0.264]
[1756962103194,0.3412,4386.9,4386.0,0.3388]
[1756962103999,0.3412,4386.9,4386.2,5.8799985]
[1756962104796,0.3412,4387.4,4386.3,0.74903]
[1756962104999,0.3412,4387.4,4386.4,0.3388]
[1756962105298,0.3412,4387.4,4386.5,0.263]
[1756962106203,0.3412,4387.4,4386.6,0.263]
[1756962106601,0.3412,4387.4,4386.7,0.263]
[1756962106905,0.3412,4386.9,4386.8,0.263]
[1756962107805,0.3412,4386.9,4386.0,6.3486985]
[1756962108002,0.1297,4386.5,4386.1,0.263]
[1756962108207,0.3412,4386.4,4385.5,0.3388]
[1756962108406,0.1297,4386.0,4385.9,0.263]
[1756962108710,0.4709,4386.0,4385.9,0.263]
[1756962108897,0.4709,4386.0,4385.0,0.1395]
[1756962108898,0.1297,4386.0,4384.7,32.841]
[1756962109103,0.3412,4385.9,4384.8,0.262]
[1756962109398,0.3412,4385.9,4384.7,73.641]
[1756962109601,0.3412,4385.9,4384.8,0.262]
[1756962111107,0.1297,4385.0,4384.2,32.841]
[1756962111306,5.8799985,4384.7,4382.9,0.3388]
[1756962111607,0.4552,4384.9,4382.8,32.841]
[1756962111608,5.8799985,4384.2,4383.0,0.262]
[1756962111909,0.3412,4383.9,4383.1,0.262]
[1756962112104,0.1297,4384.0,4381.5,0.0594]
[1756962112105,0.3412,4383.4,4381.5,0.0594]
[1756962112305,0.3412,4383.4,4381.7,0.263]
[1756962112506,0.3412,4383.4,4381.8,0.3388]
[1756962113010,0.3412,4383.4,4381.9,0.263]
[1756962114912,0.3412,4383.4,4382.1,5.8799985]
[1756962115112,0.1297,4383.5,4382.1,5.8799985]
[1756962115314,0.3412,4383.4,4382.1,6.2187985]
[1756962115507,0.1297,4383.5,4382.1,6.2187985]
[1756962115708,0.3412,4383.4,4382.2,0.262]
[1756962115908,0.3412,4383.4,4382.1,0.3388]
[1756962116114,0.3412,4383.4,4382.2,0.262]
[1756962116915,0.3412,4383.4,4382.4,0.3388]
[1756962117212,0.3412,4383.4,4382.2,0.262]
[1756962117416,0.3412,4383.4,4382.3,0.3388]
[1756962117807,0.3412,4383.9,4383.2,5.8799985]
[1756962118013,0.3412,4383.9,4383.3,0.261]
[1756962118213,0.3412,4383.9,4382.5,0.0759]
[1756962118214,0.3412,4383.9,4383.4,0.261]
[1756962118514,0.1297,4383.5,4383.4,0.261]
[1756962118714,0.4709,4383.5,4383.4,0.261]
[1756962119714,0.4709,4384.0,4383.4,0.261]
[1756962122014,0.3412,4384.0,4383.4,0.261]
[1756962122318,0.3412,4384.4,4383.5,0.3388]
[1756962123214,0.3412,4384.4,4383.5,0.3982]
[1756962123616,0.3412,4384.4,4383.5,0.80868]
[1756962123809,0.3412,4384.4,4383.5,0.3982]
[1756962124323,0.3412,4384.4,4383.6,0.3388]
[1756962125516,0.3412,4384.6,4383.9,6.2187985]
[1756962125719,0.3412,4384.6,4384.0,0.26]
[1756962125919,0.1297,4385.5,4383.9,6.2187985]
[1756962125920,0.1297,4384.5,4384.1,0.26]
[1756962126122,0.3412,4384.4,4383.6,40.8]
[1756962126316,0.3412,4384.4,4383.7,0.26]
[1756962126519,0.114,4384.3,4383.7,0.26]
[1756962127019,0.3412,4384.2,4383.6,0.259]
[1756962127225,0.3412,4383.9,4383.6,0.259]
[1756962128226,0.1297,4384.0,4383.1,32.853]
[1756962128427,0.3412,4383.9,4383.2,0.259]
[1756962128629,0.3412,4383.9,4382.5,40.9299]
[1756962128630,5.8799985,4383.4,4382.5,0.259]
[1756962128925,0.3412,4382.9,4382.5,0.259]
[1756962129121,0.3412,4382.9,4382.6,0.259]
[1756962129315,0.3412,4382.9,4382.7,0.259]
[1756962129826,0.1297,4382.5,4382.4,0.259]
[1756962130028,0.4709,4382.5,4382.4,0.259]
[1756962130625,0.3412,4382.4,4381.3,32.853]
[1756962130829,0.3412,4382.4,4381.4,0.259]
[1756962134118,0.3558,4382.4,4381.4,0.5906]
[1756962134326,0.1297,4382.5,4381.4,0.5906]
[1756962134630,0.9323,4382.3,4381.4,0.5906]
[1756962134930,0.3558,4382.2,4381.4,0.5906]
[1756962136332,0.9323,4382.3,4381.9,0.3316]
[1756962136533,0.9323,4382.3,4382.0,0.258]
[1756962136832,1.103,4382.1,4382.0,0.258]
[1756962137724,0.7472,4382.1,4382.0,0.5896]
[1756962137925,0.7472,4382.1,4381.5,1.33169581]
[1756962137926,1.103,4382.1,4381.6,1.54399581]
[1756962138230,0.3558,4382.0,4381.7,1.80099581]
[1756962138631,0.7472,4382.1,4381.7,1.80099581]
[1756962139222,0.7472,4382.1,4381.8,1.21239581]
[1756962139426,0.1277,4382.0,4381.8,1.21239581]
[1756962139729,0.3558,4381.9,4381.8,1.21239581]
[1756962139930,0.3558,4381.9,4381.8,1.46939581]
[1756962140427,0.1277,4382.0,4381.4,1.61652775]
[1756962140735,0.4835,4382.0,4381.9,1.22434796]
[1756962141031,0.4835,4382.0,4381.9,0.257]
[1756962141232,0.9336,4382.0,4381.9,0.257]
[1756962142034,0.586,4382.0,4381.9,0.6961]
[1756962142336,0.586,4382.0,4381.9,1.0277]
[1756962142534,0.3558,4382.0,4381.9,1.0277]
[1756962142842,0.1141,4382.1,4382.0,0.4509]
[1756962143033,0.3558,4383.0,4382.1,0.41062]
[1756962143331,0.3558,4383.0,4382.5,7.10460247]
[1756962143534,0.1277,4383.0,4382.6,1.48060397]
[1756962143729,0.3558,4382.9,4382.6,0.256]
[1756962143934,0.3558,4382.9,4382.7,0.2697]
[1756962144433,0.3558,4383.4,4382.6,0.5257]
[1756962144833,0.3558,4383.4,4382.6,1.75030397]
[1756962145028,1.0314,4383.3,4382.7,1.22460397]
[1756962145224,0.3558,4383.2,4382.7,1.22460397]
[1756962145428,0.1277,4383.0,4382.8,0.256]
[1756962145633,0.3558,4382.9,4382.8,0.256]
[1756962147641,0.3558,4383.2,4382.8,0.256]
[1756962147931,1.0314,4383.3,4382.8,0.256]
[1756962148329,1.0314,4383.3,4383.0,0.0759]
[1756962148637,1.0314,4383.3,4383.1,0.2697]
[1756962148937,0.4835,4384.0,4383.2,0.5257]
[1756962149141,0.1277,4384.0,4383.4,1.22319901]
[1756962149439,0.3558,4383.4,4383.3,1.22319901]
[1756962150335,0.3558,4383.4,4383.2,1.47919901]
[1756962150732,0.3558,4383.4,4383.2,0.256]
[1756962150933,0.1277,4383.5,4383.2,0.256]
[1756962151236,0.3558,4383.4,4383.2,0.256]
[1756962151538,0.1277,4383.5,4383.2,0.256]
[1756962151741,0.3558,4383.4,4383.2,0.5257]
[1756962152133,0.1277,4383.5,4383.2,0.256]
[1756962152330,0.3558,4383.4,4382.9,34.08619901]
[1756962152534,0.4835,4383.0,4382.9,32.863]
[1756962152834,0.4835,4383.0,4382.9,33.118]
[1756962153236,0.1277,4383.0,4382.4,1.22319901]
[1756962153534,0.1277,4382.0,4381.8,1.22319901]
[1756962153740,0.3558,4381.9,4381.8,1.22319901]
[1756962154040,0.3558,4381.9,4381.8,0.255]
[1756962154940,0.3558,4381.9,4381.8,1.74789901]
[1756962155132,0.3558,4382.4,4381.8,1.74789901]
[1756962156033,0.1277,4382.5,4381.8,1.47819901]
[1756962156342,0.1277,4382.5,4382.1,1.22319901]
[1756962156636,0.3558,4382.4,4382.2,0.254]
[1756962157341,0.1277,4382.5,4382.2,1.47719901]
[1756962157939,0.3558,4382.4,4382.2,1.47719901]
[1756962158135,0.3558,4382.4,4382.3,1.22319901]
[1756962158436,0.1277,4382.5,4382.2,0.254]
[1756962158636,0.3558,4382.4,4382.2,0.254]
[1756962158835,0.1277,4383.0,4382.3,0.2697]
[1756962159142,0.3558,4383.4,4382.8,1.61652775]
[1756962159340,0.3558,4382.9,4382.7,0.254]
[1756962160236,0.1277,4382.5,4381.9,2.03462284]
[1756962160443,0.4835,4382.0,4381.9,2.05363056]
[1756962160743,0.4835,4382.0,4381.9,2.30763056]
[1756962161242,0.4835,4382.0,4381.9,0.254]
[1756962162637,0.3345,4381.9,4381.6,33.1297]
[1756962162841,0.3345,4381.9,4381.7,0.253]
[1756962163233,0.3345,4381.9,4381.8,2.05363056]
[1756962163437,0.3345,4381.9,4381.7,2.30663056]
[1756962163642,0.1277,4382.0,4381.7,2.30663056]
[1756962163843,0.3446,4382.0,4381.9,0.2222]
[1756962164045,0.3446,4382.0,4381.9,0.4752]
[1756962164341,0.6791,4382.0,4381.9,0.6858]
[1756962164949,0.8935,4382.0,4381.9,0.4752]
[1756962165544,0.8935,4382.0,4381.9,0.2222]
[1756962165747,0.8935,4382.0,4381.9,0.4752]
[1756962166245,0.3345,4382.0,4381.9,0.9534]
[1756962166441,0.3345,4382.9,4382.6,0.4328]
[1756962166648,0.3345,4382.9,4382.8,0.4328]
[1756962166840,0.5514,4382.9,4382.8,0.4328]
[1756962167447,0.3345,4382.9,4382.8,0.4328]
[1756962167649,0.3345,4383.4,4382.8,0.7004]
[1756962167848,0.1369,4384.0,4383.0,1.64118103]
[1756962168148,0.5514,4383.2,4383.1,0.4752]
[1756962168346,0.7658,4383.2,4383.1,0.4752]
[1756962172044,0.7658,4383.2,4383.1,0.6858]
[1756962172947,0.4714,4384.0,4383.5,0.4328]
[1756962173140,0.4714,4384.0,4383.5,0.9524]
[1756962173344,0.4714,4384.0,4383.5,2.32222768]
[1756962173542,0.4714,4384.0,4383.6,0.7004]
[1756962173743,0.1369,4384.5,4383.6,4.66092]
[1756962173744,0.3345,4384.4,4383.6,4.66092]
[1756962174052,0.5682,4385.0,4384.4,0.3166]
[1756962174352,0.5682,4385.0,4384.7,1.22776368]
[1756962175346,0.5682,4385.0,4383.5,1.6329855]
[1756962175347,6.79769087,4384.8,4383.5,1.6329855]
[1756962175546,6.79769087,4384.1,4382.1,0.3166]
[1756962175741,6.79769087,4383.3,4382.1,0.3166]
[1756962175945,6.79769087,4383.3,4382.1,0.4316]
[1756962176145,0.22817,4383.2,4382.1,0.4316]
[1756962176351,0.99667,4383.2,4382.1,0.4316]
[1756962176652,0.22817,4383.1,4382.0,0.0739]
[1756962177152,0.22818,4383.0,4382.0,0.0739]
[1756962177453,0.22818,4383.1,4382.0,0.0739]
[1756962177846,0.22818,4383.0,4382.0,0.0739]
[1756962178041,0.22818,4383.1,4382.0,0.0739]
[1756962178441,0.22818,4383.0,4382.0,0.0739]
[1756962178640,0.22818,4383.1,4382.0,0.0739]
[1756962179450,0.7685,4383.2,4382.0,0.0739]
[1756962179648,0.22818,4383.1,4382.0,0.0739]
[1756962179851,0.7685,4383.2,4382.0,0.0739]
[1756962180354,0.7685,4383.2,4382.0,0.3905]
[1756962181257,0.99668,4383.2,4382.0,0.3905]
[1756962181847,0.7685,4383.2,4382.0,0.3905]
[1756962182350,0.7685,4383.2,4382.1,0.3166]
[1756962182551,0.7685,4383.2,4381.6,0.3166]
[1756962183053,0.52730652,4383.1,4381.6,0.3166]
[1756962183244,6.79769087,4382.9,4381.6,0.5388]
[1756962183953,0.52735886,4382.8,4381.6,0.3166]
[1756962184153,0.252,4382.9,4381.6,0.3166]
[1756962186254,0.252,4383.1,4381.6,0.3166]
[1756962187153,7.56619087,4383.2,4381.6,0.3166]
[1756962187359,7.81719087,4383.2,4381.6,0.3166]
[1756962190451,1.0195,4383.2,4383.0,0.1365]
[1756962190651,1.0195,4383.2,4383.1,0.3166]
[1756962191256,1.0195,4383.2,4382.7,0.3166]
[1756962191452,1.0195,4383.2,4382.6,0.3166]
[1756962191656,1.0195,4383.2,4382.6,0.5388]
[1756962191845,0.7685,4383.2,4382.6,0.5388]
[1756962192050,0.0654,4382.7,4382.6,0.3166]
[1756962192753,0.0859,4382.7,4382.1,0.3458]
[1756962194554,0.0654,4382.7,4382.5,0.1355]
[1756962194755,0.0654,4382.7,4382.6,0.3458]
[1756962194948,0.0654,4382.7,4382.6,0.5703]
[1756962195153,0.02,4383.4,4382.6,0.4514]
[1756962195353,0.27,4383.4,4382.7,0.3458]
[1756962195558,0.02,4383.4,4382.7,0.3458]
[1756962195857,0.9239,4383.3,4382.7,0.3458]
[1756962196656,0.9239,4383.3,4383.0,0.1355]
[1756962196861,0.0321,4383.1,4383.0,0.7058]
[1756962198252,0.0642,4383.1,4383.0,0.7058]
[1756962198666,0.0642,4383.1,4383.0,0.4813]
[1756962200163,4.0842,4383.1,4382.6,0.3458]
[1756962200361,0.0321,4382.1,4382.0,0.5879]
[1756962200556,0.9355,4383.2,4381.5,0.1365]
[1756962200557,0.02,4382.0,4381.5,0.1365]
[1756962200762,0.0642,4381.6,4381.5,0.1365]
[1756962200960,0.0842,4381.6,4381.5,0.1365]
[1756962201157,0.0842,4381.6,4381.2,0.3458]
[1756962201362,0.0842,4381.6,4380.5,0.1355]
[1756962201665,0.0642,4381.6,4380.5,0.1355]
[1756962202062,0.0642,4381.6,4381.5,0.1355]
[1756962202264,0.3132,4381.6,4381.5,0.4813]
[1756962202462,11.11089087,4381.6,4381.1,0.3458]
[1756962202771,7.13089087,4381.6,4380.9,0.3458]
[1756962203275,0.3332,4381.6,4380.9,0.3458]
[1756962204271,0.0642,4381.0,4380.9,0.3458]
[1756962204561,0.0842,4381.0,4380.9,0.3458]
[1756962204958,0.0642,4381.0,4380.9,0.3458]
[1756962206463,0.0842,4381.0,4380.9,0.3458]
[1756962206662,0.0842,4381.0,4380.6,0.3458]
[1756962206869,0.0842,4381.0,4380.5,0.1355]
[1756962207068,0.0842,4381.0,4380.6,0.3458]
[1756962207270,0.0642,4381.0,4380.9,0.5703]
[1756962207768,0.3122,4381.0,4380.9,0.5703]
[1756962208161,0.02,4381.9,4381.0,0.1355]
[1756962208362,5.95023361,4381.5,4381.4,0.3458]
[1756962208565,6.49091431,4381.5,4381.4,0.3458]
[1756962208868,6.49091431,4381.5,4381.0,0.1355]
[1756962209168,0.0642,4381.1,4381.0,0.4813]
[1756962209565,0.0842,4381.1,4381.0,0.4813]
[1756962210171,0.0642,4381.1,4381.0,0.4813]
[1756962210871,0.0842,4381.1,4381.0,0.4813]
[1756962211071,0.0642,4381.1,4380.5,0.1355]
[1756962211271,0.0642,4380.6,4380.5,0.7058]
[1756962211973,4.3322,4380.6,4380.0,0.1355]
[1756962212166,0.1555,4380.0,4379.8,0.10169]
[1756962212471,0.8403,4379.9,4379.8,0.44749]
[1756962212868,0.8403,4379.9,4379.8,0.10169]
[1756962213064,1.8108,4379.9,4379.8,0.10169]
[1756962213267,1.8108,4379.9,4379.8,0.32619]
[1756962213473,1.5628,4379.9,4379.8,0.67199]
[1756962213869,1.8108,4379.9,4379.8,0.67199]
[1756962214069,1.8108,4379.9,4379.8,0.44749]
[1756962214266,0.1555,4379.8,4379.1,0.3458]
[1756962214468,6.57083361,4379.7,4379.6,0.5703]
[1756962214770,0.2142,4379.7,4379.6,0.7972]
[1756962214965,1.3402,4379.9,4379.8,0.4514]
[1756962215167,1.8108,4379.9,4379.8,0.3458]
[1756962215380,2.5758,4379.9,4379.8,0.5703]
[1756962215575,0.2142,4379.2,4379.1,0.5703]
[1756962215873,0.2142,4379.2,4379.1,0.7972]
[1756962216265,0.248,4379.4,4379.2,0.3458]
[1756962216467,0.248,4379.4,4379.3,0.7972]
[1756962216772,0.6848,4379.4,4379.3,0.5703]
[1756962216969,0.1555,4379.3,4379.1,0.3458]
[1756962217167,0.4368,4379.2,4379.1,0.7972]
[1756962217374,0.248,4379.4,4379.2,0.3458]
[1756962217570,0.2142,4379.3,4379.2,0.5703]
[1756962217764,0.4622,4379.3,4379.2,0.7972]
[1756962218570,0.6848,4379.3,4379.2,0.7972]
[1756962218767,0.6848,4379.3,4379.2,0.3458]
[1756962219376,0.4368,4379.1,4379.0,0.4813]
[1756962219577,6.47833361,4379.1,4379.0,0.4813]
[1756962219980,0.4368,4378.1,4378.0,0.7058]
[1756962220180,0.6848,4378.1,4378.0,0.9327]
[1756962220372,0.4622,4378.1,4378.0,0.9327]
[1756962220869,0.6848,4378.1,4377.5,0.1355]
[1756962221072,0.4368,4377.7,4377.5,0.1355]
[1756962221270,0.1555,4377.7,4377.0,0.4813]
[1756962221473,6.04903361,4377.6,4377.1,0.3458]
[1756962221677,6.04903361,4377.6,4377.0,0.1355]
[1756962221876,0.1555,4377.5,4377.0,0.1355]
[1756962222074,6.19473361,4377.6,4377.0,0.4701]
[1756962222275,0.249,4377.5,4377.0,0.1355]
[1756962222475,0.249,4377.4,4377.1,0.3346]
[1756962222679,0.249,4377.4,4377.0,0.1355]
[1756962222975,0.249,4377.3,4377.1,0.3346]
[1756962223176,5.88603361,4377.7,4377.1,0.3346]
[1756962223177,0.249,4377.2,4377.1,0.3346]
[1756962223386,0.25,4377.8,4377.6,0.3346]
[1756962223676,0.1457,4378.9,4377.6,0.3346]
[1756962223978,5.88603361,4377.9,4377.6,0.3346]
[1756962224170,6.13603361,4377.9,4377.5,0.1394]
[1756962224376,6.28173361,4377.9,4377.6,0.3346]
[1756962224577,0.1457,4377.8,4377.1,0.3346]
[1756962224779,5.88603361,4377.2,4376.6,0.3346]
[1756962224980,0.25,4377.1,4377.0,0.1394]
[1756962225279,0.25,4377.3,4377.1,0.3346]
[1756962225474,5.88603361,4377.6,4377.5,0.474]
[1756962225671,7.23053361,4377.6,4377.5,0.474]
[1756962226270,6.98053361,4377.6,4377.5,0.474]
[1756962226470,1.0945,4377.6,4377.5,0.474]
[1756962226682,1.0945,4377.6,4377.5,4.474]
[1756962227774,1.0945,4377.6,4377.5,0.474]
[1756962228477,1.0945,4377.6,4377.5,4.474]
[1756962228671,1.0945,4377.6,4377.5,0.474]
[1756962230071,1.0945,4377.6,4377.5,4.474]
[1756962230685,1.0945,4377.6,4377.5,0.474]
[1756962233786,1.5403,4377.6,4377.5,0.7082]
[1756962233988,1.0945,4377.6,4377.5,0.9286]
[1756962234182,1.5403,4377.6,4377.5,0.7082]
[1756962235082,1.0945,4377.6,4377.5,0.9286]
[1756962236679,1.0945,4377.6,4377.5,4.9286]
[1756962237085,0.2187,4379.1,4379.0,0.7082]
[1756962237385,0.7583635,4379.1,4379.0,0.9286]
[1756962237586,0.5396635,4379.1,4379.0,0.9286]
[1756962237892,0.5396635,4379.5,4379.1,0.3346]
[1756962238086,0.53994258,4379.4,4379.1,0.3346]
[1756962238387,0.54019802,4379.3,4379.1,0.3346]
[1756962238586,0.54019802,4379.2,4379.1,0.3346]
[1756962239698,0.7657,4379.6,4379.5,0.474]
[1756962240385,0.4129,4379.6,4379.5,4.474]
[1756962240785,0.765,4379.9,4379.5,4.1394]
[1756962240984,0.765,4379.9,4379.6,0.3346]
[1756962242090,0.765,4379.9,4379.5,0.1394]
[1756962242480,5.88603361,4379.6,4379.0,0.1394]
[1756962242679,0.354,4379.4,4378.6,0.3346]
[1756962243490,0.354,4379.2,4378.6,0.3346]
[1756962244686,0.495,4379.0,4377.6,0.3346]
[1756962244890,0.4928,4378.5,4377.6,0.3346]
[1756962245900,0.354,4378.5,4377.6,0.3346]
[1756962246597,0.9862,4378.9,4378.1,0.3346]
[1756962246795,0.9862,4378.9,4378.5,0.1394]
[1756962246985,0.9862,4378.9,4378.6,0.3346]
[1756962247397,0.354,4379.4,4378.6,0.3346]
[1756962248297,5.88603361,4379.1,4378.1,0.3346]
[1756962248488,4.22836,4379.3,4377.5,0.1394]
[1756962248489,0.4928,4378.5,4377.6,0.3346]
[1756962248690,0.7418,4378.5,4377.6,0.3346]
[1756962248890,0.603,4378.5,4377.6,0.3346]
[1756962249091,0.7418,4378.5,4377.6,0.3346]
[1756962249288,0.354,4379.0,4377.6,0.3346]
[1756962249498,1.0546,4378.4,4377.6,0.3346]
[1756962250086,1.4086,4378.4,4377.6,0.3346]
[1756962253103,5.88603361,4378.1,4376.5,0.1394]
[1756962253303,0.4391,4378.0,4377.1,0.338]
[1756962255198,0.091,4378.0,4377.1,0.338]
[1756962255400,0.5971,4377.9,4377.1,0.338]
[1756962256395,0.796,4377.2,4376.6,0.338]
[1756962257300,0.796,4377.2,4377.1,0.2252]
[1756962257502,0.796,4377.2,4377.1,0.5632]
[1756962258498,0.796,4377.2,4376.6,0.338]
[1756962259403,0.796,4377.2,4377.1,0.5632]
[1756962259701,0.796,4377.2,4377.1,0.4491]
[1756962260299,0.4479,4377.2,4376.5,0.338]
[1756962260505,0.2267,4376.2,4376.1,0.7944]
[1756962261998,0.3481,4376.5,4376.1,0.7944]
[1756962262304,0.5748,4376.5,4376.4,0.7944]
[1756962262702,32.9,4379.4,4377.0,0.4564]
[1756962262703,0.5748,4377.1,4377.0,0.4564]
[1756962262903,0.4479,4377.1,4376.5,0.1366]
[1756962263108,0.796,4376.6,4376.5,0.5632]
[1756962263402,0.796,4376.6,4376.5,0.2252]
[1756962263598,0.1291,4377.0,4376.0,0.1394]
[1756962263599,0.2267,4376.2,4376.1,0.7944]
[1756962263803,0.1291,4377.0,4376.0,0.1394]
[1756962264103,0.796,4376.2,4376.1,0.7944]
[1756962265108,0.4479,4376.2,4376.1,0.7944]
[1756962265806,0.3481,4376.5,4376.1,0.4564]
[1756962266110,0.3481,4376.5,4376.0,0.1394]
[1756962266111,0.796,4376.5,4376.4,0.5632]
[1756962266600,0.796,4376.5,4376.4,0.7944]
[1756962267804,0.3481,4376.4,4376.1,0.338]
[1756962268012,0.796,4376.2,4376.1,0.5632]
[1756962268311,0.796,4376.2,4376.1,0.7944]
[1756962272006,0.796,4376.2,4376.1,0.2252]
[1756962273512,0.796,4376.2,4376.1,0.5632]
[1756962273716,0.796,4376.2,4376.1,0.7944]
[1756962274215,0.2267,4376.2,4376.1,0.7944]
[1756962275014,0.3481,4376.5,4376.1,0.4564]
[1756962275210,0.2267,4376.5,4376.4,0.7944]
[1756962275413,0.4479,4376.9,4376.8,0.2252]
[1756962275615,0.4479,4376.9,4376.1,0.338]
[1756962275616,0.796,4376.9,4376.1,0.338]
[1756962275814,0.796,4376.9,4376.8,0.2252]
[1756962276821,0.796,4376.9,4376.5,0.338]
[1756962277318,0.796,4376.9,4376.1,0.338]
[1756962279409,1.0664,4376.8,4376.1,0.338]
[1756962279716,1.0664,4376.8,4376.7,0.2252]
[1756962279717,1.8624,4376.8,4376.7,0.2252]
[1756962279913,1.8624,4376.8,4376.7,0.5632]
[1756962281015,0.2267,4376.8,4376.7,0.7944]
[1756962281213,0.3481,4377.3,4376.8,0.338]
[1756962281411,0.796,4376.9,4376.8,0.7944]
[1756962281812,1.5518,4376.9,4376.8,0.7944]
[1756962283514,1.5518,4376.9,4376.1,0.245]
[1756962283708,0.2251,4376.2,4376.1,0.9818]
[1756962283911,0.3253,4376.1,4375.5,0.1366]
[1756962284118,0.7822,4376.1,4376.0,0.5418]